Cogmind - Beta 15 @@@ ROGUE MODE // 2025.05.15 @ 20:31:50 Player: XDRM Result: Destroyed by M6-QM4(R) with Subdweller Laser Performance ------------- Evolutions (0) 0 Regions Visited (2) 400 Robots Destroyed (23) 115 Value Destroyed (513) 513 Prototype IDs (0) 0 Alien Tech Used (0) 0 Bonus (0) 0 TOTAL SCORE: 1028 Bonus ------- None Cogmind --------- Core Integrity 0/250 Matter 289/300 Energy 152/170 System Corruption 0% Temperature Cool (6) Movement Rolling (95) Location -10/Subcaves Parts ------- > --- POWER (1) -------- Makeshift Power Source > --- PROPULSION (2) --- Wheel Subdweller Monowheel > --- UTILITY (2) ------ Heat Sink Hardened Light Armor Plating > --- WEAPON (2) ------- (None) > --- INVENTORY (5) ---- Structural Scanner Peak State ------------ > --- POWER ------------ Subdweller Power Source > --- PROPULSION ------- Wheel Subdweller Monowheel > --- UTILITY ---------- Heat Sink Structural Scanner > --- WEAPON ----------- Particle Gun Particle Gun > --- INVENTORY -------- Wheel Hardened Light Armor Plating Mining Laser [Rating: 11] Favorites ----------- Power Light Ion Engine Engine Light Ion Engine Propulsion Compact Wheel Wheel Compact Wheel Utility Structural Scanner Device Structural Scanner Storage Small Storage Unit Protection Hardened Light Armor Plating Weapon Particle Gun Energy Gun Particle Gun Special Weapon Mining Laser Build | -11 -10 -10 ------- Run | Yrd Mat Sub Slots Evolved . | . . . Power . | . . . Propulsion . | . . . Utility . | . . . Weapon . | . . . Parts Attached 21 | 7 7 7 Power 5 | 1 2 2 Engine 5 | 1 2 2 Core . | . . . Reactor . | . . . Propulsion 5 | 2 . 3 Treads . | . . . Leg . | . . . Wheel 5 | 2 . 3 Hover . | . . . Flight . | . . . Utility 5 | 2 1 2 Device 3 | 1 1 1 Storage 1 | 1 . . Processor . | . . . Hackware . | . . . Protection 1 | . . 1 Artifact . | . . . Weapon 6 | 2 4 . Energy Gun 5 | 2 3 . Energy Cannon . | . . . Ballistic Gun . | . . . Ballistic Cannon . | . . . Launcher . | . . . Special Weapon 1 | . 1 . Impact Weapon . | . . . Slashing Weapon . | . . . Piercing Weapon . | . . . Special Melee Weapon . | . . . Unidentified Prototypes . | . . . Parts Lost 12 | . 4 8 Power 4 | . 2 2 Propulsion 3 | . 1 2 Utility 1 | . . 1 Weapon 4 | . 1 3 Highest Loss Streak 6 | . 2 6 To Critical Strikes 1 | . . 1 Average Backups 3 | . 3 4 Power . | . . . Propulsion 1 | . 2 2 Utility . | . . 1 Weapon . | . 1 . Tool/Special . | . . . Unused Backups . | . . . Power . | . . . Propulsion . | . . . Utility . | . . . Weapon . | . . . Tool/Special . | . . . Average Slot Usage (%) 88 | . 92 82 Engine 12 | . 11 12 Wheel 20 | . 24 15 Device 27 | . 27 26 Energy Gun 25 | . 27 22 Special Weapon 1 | . . 3 Peak Build Rating 11 | 9 10 11 Average Rating 8 | 5 8 8 On Entrance 6 | . 9 9 Naked Turns . | . . . Heaviest Build 13 | 13 13 13 Greatest Support 32 | 32 32 30 Greatest Overweight (x) . | . . . Average Overweight (x) . | . . . Largest Inventory Capacity 8 | 8 8 5 Average Capacity 5 | 7 5 5 Most Carried 5 | 3 5 5 Average Carried 3 | . 3 4 Final Capacity 8 | 8 5 5 Final Carried 5 | 3 5 1 Class Distribution -------------------- 82% | Mutant 17% | Scavenger-Mutant Dominant Class ---------------- Mutant | -10/Materials Mutant | -10/Subcaves Resources | -11 -10 -10 ----------- Run | Yrd Mat Sub Matter Collected 414 | 270 40 104 Remotely . | . . . Salvage Created 798 | 216 410 172 Parts 59 | 14 37 8 Haulers Intercepted 1 | . 1 . Recyclers Shooed 1 | 1 . . Parts Field Recycled . | . . . Retrieved Matter . | . . . Parts Self-Destructed 9 | . . 9 Prevented . | . . . Kills | -11 -10 -10 ------- Run | Yrd Mat Sub Combat Hostiles Destroyed 14 | . 9 5 Guns 11 | . 6 5 AOE 3 | . 3 . Classes Destroyed 7 | 2 4 1 Builder 1 | . 1 . Tunneler 6 | 5 1 . Hauler 1 | . 1 . Recycler 1 | 1 . . Swarmer 3 | . 3 . Grunt 8 | . 6 2 Subdweller 3 | . . 3 Best Kill Streak 6 | 6 3 2 Combat Bots Only 3 | . 3 2 Max Kills in Single Turn 3 | 1 3 1 Gunslinging 1 | . 1 . Exploded 3 | . 3 . Melee . | . . . Uniques/NPCs Destroyed . | . . . Combat | -11 -10 -10 -------- Run | Yrd Mat Sub Hostile Shots Fired 107 | . 51 56 Missed 40 | . 17 23 Hits 67 | . 34 33 Projectile 67 | . 34 33 Critical Strikes 3 | . . 3 Damage Taken 1067 | . 425 642 Core 253 | . 135 118 Absorbed by Shields . | . . . Core Remaining (%) 100 | 100 . . Volleys Fired 90 | 10 47 33 Largest 2 | 2 2 2 Hottest 130 | 90 100 130 Shots Fired 159 | 20 89 50 Gun 147 | 20 85 42 Cannon . | . . . Launcher . | . . . Special 12 | . 4 8 Kinetic . | . . . Thermal 115 | 10 55 50 Explosive . | . . . Electromagnetic 44 | 10 34 . Robot Hit Streak 20 | 9 8 20 Robot Miss Streak 4 | 2 4 2 Penetration Max . | . . . Secondary Targets 4 | . 1 3 Max Gunslinging Chain 1 | . 1 1 Shots Hit Robots 101 | 13 50 38 Core Hits 36 | 7 19 10 Critical Kills . | . . . Critical Parts Destroyed . | . . . Critical Strikes 5 | . 3 2 Burn 4 | . 2 2 Corrupt 1 | . 1 . Melee Attacks . | . . . Impact . | . . . Slashing . | . . . Piercing . | . . . Sneak Attacks . | . . . Combat Hostiles . | . . . Follow-up Attacks . | . . . Damage Inflicted 1361 | 163 754 444 Guns 1192 | 163 633 396 Cannons . | . . . Explosions 121 | . 121 . Melee . | . . . Ramming . | . . . Kinetic . | . . . Thermal 1009 | 52 513 444 Explosive . | . . . Electromagnetic 352 | 111 241 . Impact . | . . . Slashing . | . . . Piercing . | . . . Highest Corruption . | . . . Average Corruption . | . . . Corruption Purged . | . . . Corruption Blocked . | . . . Overload Shots . | . . . Overflow Damage 10 | . 10 . Projectiles . | . . . Explosions 10 | . 10 . Melee . | . . . Knockbacks . | . . . Impact . | . . . Kinetic . | . . . Secondary . | . . . Self-Inflicted Damage 36 | . 36 . Shots 1 | . 1 . Rammed . | . . . Targets Rammed . | . . . Kicked . | . . . Crushed . | . . . Highest Temperature 316 | 300 316 51 Average Temperature 93 | 153 84 15 Received Heat Transfer 393 | . 189 204 Effects 1 | 1 . . Energy Bleed 1 | 1 . . Siege Activations . | . . . Martial Activations . | . . . Shielding Activations . | . . . Robots Disrupted . | . . . Combat Hostiles . | . . . Robots Corrupted . | . . . Combat Hostiles . | . . . Parts Fried . | . . . Impact Corruptions . | . . . Robots Melted . | . . . Combat Hostiles . | . . . Parts Melted 2 | . . 2 Heat Transferred 2719 | 148 1398 1173 Parts Sabotaged . | . . . Parts Stolen . | . . . Parts Stripped . | . . . Power Chain Reactions 1 | . 1 . Alert | -11 -10 -10 ------- Run | Yrd Mat Sub Maximum Alert Level . | . . . Low Security (%) 100 | 100 100 . Level 1 . | . . . Level 2 . | . . . Level 3 . | . . . Level 4 . | . . . Level 5 . | . . . High Security . | . . . Max Security . | . . . Peak Influence 184 | 20 184 . Initial 6 | . 6 . Average 94 | 5 111 . Influence Increases 447 | 30 367 50 Destroy 0b10 Robot/C 220 | . 180 40 Destroy 0b10 Robot/NC 45 | 30 15 . Destroy Leader 42 | . 32 10 Successful Hack 13 | . 13 . Select Force Hacks 30 | . 30 . Disable Machine 15 | . 15 . Destroy Structure 7 | . 7 . Lose Combat Pursuer 75 | . 75 . Influence Decreases 447 | 20 260 167 Entered New Map 61 | . 4 57 Time Decay 336 | 20 216 100 Lost Part 50 | . 40 10 Squads Dispatched 1 | . 1 . Investigation 1 | . 1 . Extermination . | . . . Reinforcement . | . . . Assault . | . . . Garrison . | . . . Intercept . | . . . Searches Triggered . | . . . Construction Impeded . | . . . Haulers Reinforced . | . . . Active Scanning Responses . | . . . Cargo Convoy Interrupts . | . . . Stealth | -11 -10 -10 --------- Run | Yrd Mat Sub Distress Signals 2 | . 2 . Communications Jammed . | . . . Distress Signals . | . . . Times Spotted 27 | . 21 6 Peak Tracking Total 8 | . 8 2 Tactical Retreats 3 | . 3 . Traps | -11 -10 -10 ------- Run | Yrd Mat Sub Traps Triggered . | . . . Indirectly . | . . . Trap Hack Attempts . | . . . Triggered . | . . . Disarmed . | . . . Reprogrammed . | . . . Reused . | . . . Traps Extracted . | . . . Installed . | . . . Triggered . | . . . Machines | -11 -10 -10 ---------- Run | Yrd Mat Sub Machines Disabled 1 | . 1 . Max in Single Turn 1 | . 1 . Machines Repaired . | . . . Machines Dismantled . | . . . Machines Sabotaged . | . . . Overloaded Fab Kills . | . . . Hacking | -11 -10 -10 --------- Run | Yrd Mat Sub Machines Accessed 4 | . 4 . Terminals 3 | . 3 . Fabricators . | . . . Repair Stations . | . . . Recycling Units 1 | . 1 . Scanalyzers . | . . . Garrison Access . | . . . Total Hacks 14 | . 14 . Successful 7 | . 7 . Failed 7 | . 7 . Catastrophic . | . . . Database Lockouts . | . . . Manual 14 | . 14 . Terminals 13 | . 13 . Fabricators . | . . . Repair Stations . | . . . Recycling Units 1 | . 1 . Scanalyzers . | . . . Garrison Access . | . . . Terminal Hacks 2 | . 2 . Zone Layout 2 | . 2 . Fabricator Hacks . | . . . Repair Station Hacks . | . . . Recycling Unit Hacks . | . . . Scanalyzer . | . . . Garrison Access Hacks . | . . . Unauthorized Hacks 5 | . 5 . Terminals 4 | . 4 . Botnet 3 | . 3 . Operators 1 | . 1 . Fabricators . | . . . Repair Stations . | . . . Recycling Units 1 | . 1 . Tunnel 1 | . 1 . Scanalyzers . | . . . Garrison Access . | . . . Data Cores Recovered . | . . . Used . | . . . Hacking Detections 3 | . 3 . Full Trace Events 1 | . 1 . Feedback Events . | . . . Feedback Blocked . | . . . Robot Schematics Acquired . | . . . Robots Built . | . . . Authchips . | . . . Time . | . . . Total Robot Build Rating . | . . . Part Schematics Acquired . | . . . Parts Built . | . . . Authchips . | . . . Time . | . . . Total Part Build Rating . | . . . Parts Repaired . | . . . Time . | . . . Parts Recycled . | . . . Recycled Matter . | . . . Retrieved Matter . | . . . Retrieved Components . | . . . Parts Scanalyzed . | . . . Part Schematics Acquired . | . . . Parts Damaged . | . . . Bothacking | -11 -10 -10 ------------ Run | Yrd Mat Sub Used RIF Installer . | . . . Robots Hacked . | . . . Non-combat . | . . . Combat . | . . . Robot Hacks Applied . | . . . Relay Couplers Released . | . . . Fabnet Peak Effective % . | . . . Robots Rewired . | . . . Allies Hacked . | . . . Hacks Repelled . | . . . Allies | -11 -10 -10 -------- Run | Yrd Mat Sub Total Allies . | . . . Largest Group . | . . . Highest-Rated Group . | . . . Highest-Rated Ally . | . . . Total Orders . | . . . Ally Attacks . | . . . Total Damage . | . . . Kills . | . . . Allies Corrupted . | . . . Allies Melted . | . . . Intel | -11 -10 -10 ------- Run | Yrd Mat Sub Active Infowar (turns) 762 | 10 429 323 Terrain 569 | 10 429 130 Structural 731 | . 408 323 Robot Analysis Total . | . . . Derelict Logs Recovered . | . . . Drone Launches . | . . . Drone Recoveries . | . . . Exploration | -11 -10 -10 ------------- Run | Yrd Mat Sub Turns Passed 933 | 94 482 357 Spaces Moved 537 | 52 247 238 Core 3 | 3 . . Treads . | . . . Legs . | . . . Wheels 534 | 49 247 238 Hover . | . . . Flight . | . . . Fastest Speed 50 | 50 100 95 Average Speed 99 | 97 100 99 Slowest Speed 110 | 100 100 110 Overloaded Moves . | . . . Propulsion Burnouts . | . . . Robots Hopped . | . . . Potential Cave-ins . | . . . Cave-ins Triggered . | . . . Exploration Rate (%) 23 | 3 44 24 Regions Visited 2 Branch Regions 1 Pre-discovered Areas 1 | . 1 . Known Exits Taken . | . . . Unknown Exits Taken 2 | 1 1 . Scrap Searched . | . . . Spaces Dug 4 | . 4 . Terrain Destroyed 7 | . 7 . Melee . | . . . Projectile 4 | . 4 . AOE 3 | . 3 . Terrain Rammed . | . . . Walls Destroyed . | . . . Machines Disabled . | . . . Actions | -11 -10 -10 --------- Run | Yrd Mat Sub Total 743 | 71 384 288 Wait 82 | . 77 5 Move 535 | 51 246 238 Hop . | . . . Pick Up 8 | 3 4 1 Fast Attach 13 | 7 4 2 Attach 7 | . 2 5 Detach . | . . . Swap 5 | . 1 4 Drop 3 | . 3 . Fire 90 | 10 47 33 Melee . | . . . Ram . | . . . Kick . | . . . Crush . | . . . Escape Stasis . | . . . Rewire . | . . . Trap . | . . . Miscellaneous . | . . . Route ------- -11/Scrapyard -10/Materials (discovered 2 exits: [*Min] / [*Sub]) -10/Subcaves History --------- Turn | Location | Event 12 | -11/Scrapyard | Discovered new exit (range 16) 95 | -11/Scrapyard | Entered Materials 166 | -10/Materials | Discovered new exit (range 8) 301 | -10/Materials | Build established: Mutant 446 | -10/Materials | Core integrity fell below 50% 541 | -10/Materials | Discovered new exit (range 13) 577 | -10/Materials | Entered Subcaves 578 | -10/Subcaves | Approached by a straggling Scientist 855 | -10/Subcaves | Shifting Twisted Machinery released Battle Cannon 865 | -10/Subcaves | Shifting Twisted Machinery released Mak. Power Source 909 | -10/Subcaves | Core integrity fell below 20% 934 | -10/Subcaves | Destroyed by M6-QM4(R) with Subdweller Laser Last Messages --------------- 00878_ DO-QRK(R) destroyed. 00878_ Switching to secondary target: M6-QM4(R). 62-W76(c): "I think it's somewhere north of here" 00884_ Critical hit (Destroy). 00884_ Particle Gun destroyed. 00886_ Wheel destroyed. 00900_ Particle Gun destroyed. 00904_ Acquired 40 matter. 00909_ Subatomizers dissect the Sub. Monowheel. 00912_ Sub. Power Source destroyed. 00914_ Acquired 4 matter. 00920_ Subatomizers dissect the Sub. Monowheel. 00920_ Mining Laser destroyed. 00923_ M6-QM4(R) affixes Scrap Shield Fragment to Scrap Shield. 00923_ Acquired Mak. Power Source. 00931_ Subatomizers dissect the Sub. Monowheel. 62-W76(c): "I think it's somewhere north of here" Map ----- +----------------------------------------------------+ | ?????????????????????????????????????????????????? | | ?????????????????????????????????????????????????? | | ?????????????????????????????????????????????????? | | ?????????????????????????????????????????????????? | | ?????????????????????????????????????????????????? | | ?????????????????????????????????????????????????? | | ?????????????????????????????????????????????????? | | ?????????????????????????????????????????????????? | | ?????????????????????????????????????????????????? | | ?????????????????????????????????????????????????? | | ?????????????????????????????????????????????????? | | ?????????????????????????????????????????????????? | | ??????????????????????????????? %????????????????? | | ??????????????????????????????? ??????????????? | | ?????????????????????????????? % #????????????? | | ?????????????????????????##### #????????????? | | ???????????????????????## ???????????? | | ???????????????????????# ???????????? | | ??????????????????????? ??????????? | | ??????????????????????? ??????????? | | ???????????????????????# ??????????? | | ???????????????????????# ?????????? | | ???????????????????????# ????????????? | | ???????????????????????# #???????????????? | | ???????????????????????# #???????????????? | | ????????????????????????#@ #???????????????? | | ??????????????????????### #???????????????? | | ??????????????????????# ##??????????????? | | ####????????#######???# #??????????????? | | #########???########?## ?????????? | | ## ########### ##### ?????????? | | ## ####### " ### "R ?????????? | | ## ### ""## "" ### ??????????? | | ## ##] ### " ##?" ??????????? | | #### # " ### "##?"""""#### ??????????? | | #####" # "" ## "## ? ##???????????????? | | ####" "#" #""## = ## #????????????????? | | ### ""#" #"#### """ #????????????????? | | " """#" ######### " ##????????????????? | | ""###""""" " "######## ###????????????????? | | "####""""" "??????###### ## ????????????????? | | ##### "?????????## ##"?????????????????? | | ##### #??????????# ##"?????????????????? | | ##?### ## ##???????????####??????????????????? | | ##? ## ### ###?????????????????????????????????? | | ##???## "#######?????????????????????????????????? | | "???##########??????????????????????????????????? | | ?? ####???????????????????????????????????????? | | "?????????????????????????????????????????????? | | ?????????????????????????????????????????????? | +----------------------------------------------------+ Best States ------------- Heat Dissipation 35 Energy Generation 15 Energy Capacity 250 Matter Stores 300 Matter Capacity 300 Sight Range 16 Terrain Scan Range 16 Terrain Scan Density 10 Armor Coverage 150 Evasion (%) 41 Item Schematics ----------------- None Robot Schematics ------------------ None Fabricated ------------ Nothing Repaired ---------- Nothing Alien Tech Used ----------------- None Achievements -------------- None Challenges ------------ None Game ------ Seed TractorCompositeBeam Manual? 0 Play Time 00:11:52 Cumulative 77.3 hours Start 2025.05.15 @ 20:20:14 End 2025.05.15 @ 20:31:50 Sessions 1 Manual Loads 0 Difficulty Rogue Special Mode None Game No. 66 Rogue 66 Adventurer 0 Explorer 0 Win Type - Total 0 Types 0/0/0/0/0/0/0/0/0/0 Lore% 26 Gallery% 38 Achievement% 41 Wizard Run 0 Options --------- Layout 1 ASCII 0 Keyboard 0 Movement Mouse Keybinds 0 Fullscreen 2 Font 24/X11 Map View 50x35 Zoom Use 0% Tactical HUD 1 Map Filters NONE Filters NONE Steam 1 RUN: 0de1dbb6-c484-4dc4-bf62-b134fe218e40